bitfinex/quotes_ETHUSD_20260119
["timestamp","ask_amount","ask_price","bid_price","bid_amount"]
[1768818813315,0.91231965,3208.6,3208.5,0.002]
[1768818817824,0.001,3208.6,3208.5,0.002]
[1768818829503,0.001,3208.6,3208.5,0.98305117]
[1768818830031,0.001,3208.6,3208.5,0.002]
[1768818831345,0.99011728,3208.6,3208.5,0.002]
[1768818831821,0.001,3208.6,3208.5,0.002]
[1768818835549,0.001,3208.6,3208.5,0.91815153]
[1768818838349,0.001,3208.6,3208.5,0.002]
[1768818838542,0.99344329,3208.6,3208.5,0.002]
[1768818838848,0.001,3208.6,3208.5,0.002]
[1768818841648,0.00080136,3209.0,3208.6,0.91615153]
[1768818841838,4.10913825,3209.4,3208.8,0.91615153]
[1768818843153,0.99244329,3209.3,3208.8,0.91615153]
[1768818843646,0.99244329,3209.1,3208.6,0.91695297]
[1768818845781,0.99244329,3209.3,3208.6,0.91695297]
[1768818846129,0.001,3208.8,3208.6,0.00080144]
[1768818846329,0.001,3208.8,3208.6,0.91695297]
[1768818848033,0.001,3208.8,3208.6,1.3205292]
[1768818848231,0.001,3208.8,3208.7,0.91615153]
[1768818848974,0.99324377,3209.4,3208.7,0.91615153]
[1768818849267,4.10909585,3209.4,3208.7,0.91615153]
[1768818849431,4.10909585,3209.4,3208.8,0.91615153]
[1768818849631,0.99324377,3209.4,3208.8,0.91615153]
[1768818850964,4.10909578,3209.4,3208.8,0.91615153]
[1768818854668,0.99324377,3209.4,3208.8,0.91615153]
[1768818855766,4.10909553,3209.4,3208.8,0.91615153]
[1768818856066,0.99324377,3209.4,3208.8,0.91615153]
[1768818857767,0.99324377,3209.4,3208.9,0.002]
[1768818858136,0.001,3209.1,3208.9,0.002]
[1768818860893,0.99324425,3209.7,3209.0,0.91695209]
[1768818861251,0.99244329,3209.6,3209.0,0.91695209]
[1768818862674,0.99244329,3209.6,3209.0,1.78701345]
[1768818862979,0.94127753,3209.5,3209.0,0.00080056]
[1768818864440,0.00080096,3209.7,3209.1,0.976406]
[1768818864740,0.00080096,3209.7,3209.3,0.976406]
[1768818867592,0.94207849,3209.7,3209.1,0.976406]
[1768818868787,0.94127753,3209.6,3209.0,0.00080056]
[1768818868989,0.94127753,3209.6,3209.0,0.41035956]
[1768818869194,0.94127753,3209.6,3209.0,0.00080056]
[1768818869593,0.94127753,3209.6,3209.2,0.002]
[1768818869886,0.94227753,3209.4,3209.2,0.002]
[1768818891824,0.94227753,3209.4,3209.0,0.00080056]
[1768818892025,0.96324168,3209.3,3209.0,0.00080056]
[1768818901721,0.93051573,3209.2,3209.0,0.00080056]
[1768818902285,0.93051573,3209.2,3208.9,0.002]
[1768818902494,0.93051573,3209.1,3208.6,0.00080144]
[1768818902791,0.93051573,3209.1,3208.5,0.002]
[1768818902991,0.93051573,3208.9,3208.5,0.002]
[1768818903503,0.93051573,3208.8,3208.5,0.002]
[1768818908927,0.93051573,3208.7,3208.5,0.002]
[1768818911903,0.93051573,3208.6,3208.5,0.002]
[1768818919137,0.93051573,3208.5,3208.2,0.00080072]
[1768818919902,3.11662407,3208.6,3208.2,0.00080072]
[1768818920137,0.93051573,3208.5,3208.2,0.00080072]
[1768818920310,0.93051573,3208.3,3208.1,0.002]
[1768818923131,0.40471398,3208.4,3208.1,0.002]
[1768818923642,1.38358855,3208.4,3208.1,0.002]
[1768818925643,4.500413,3208.4,3208.1,0.002]
[1768818925825,0.4500413,3208.3,3208.1,0.002]
[1768818926022,0.97887457,3208.2,3207.9,0.00080184]
[1768818926337,0.4500413,3208.3,3207.9,0.00080184]
[1768818927655,1.42891587,3208.3,3207.9,0.00080184]
[1768818927961,0.001,3208.2,3207.9,0.00080184]
[1768818932862,0.00080072,3208.6,3208.0,0.96853291]
[1768818933064,0.00080072,3208.6,3208.1,0.96853291]
[1768818939548,0.001,3208.3,3208.1,0.96853291]
[1768818939850,0.00080072,3208.6,3208.1,0.90366181]
[1768818943049,0.93814537,3208.6,3208.1,0.90366181]
[1768818943467,0.93814537,3208.6,3207.9,0.00080184]
[1768818944266,0.93734465,3208.4,3207.9,0.00080184]
[1768818946164,0.93734465,3208.2,3207.9,0.00080184]
[1768818948676,0.93734465,3208.1,3207.9,0.00080184]
[1768818949060,0.93734465,3208.1,3207.8,0.514]
[1768818949261,0.93734465,3208.1,3207.6,0.002]
[1768818950374,0.93734465,3207.9,3207.6,0.002]
[1768818950565,0.93734465,3207.9,3207.5,0.00080176]
[1768818950873,0.93734465,3207.8,3207.5,0.00080176]
[1768818951975,0.93734465,3207.8,3207.5,0.00280176]
[1768818959788,3.52244189,3208.2,3207.5,0.92150474]
[1768818960015,4.04325551,3208.2,3207.5,0.92150474]
[1768818960290,0.92624015,3208.2,3207.5,0.92150474]
[1768818960455,3.11872208,3208.3,3207.6,0.91870298]
[1768818961394,4.04496223,3208.3,3207.6,0.91870298]
[1768818963101,0.00080072,3208.6,3208.2,0.91870298]
[1768818964053,0.92704087,3208.6,3208.2,0.91870298]
[1768818965795,4.04367816,3208.6,3208.2,0.91870298]
[1768818966096,0.92704087,3208.6,3208.2,0.91870298]
[1768818967404,0.00080072,3208.6,3208.2,0.91870298]
[1768818967578,0.92704159,3209.0,3208.3,0.91870298]
[1768818968280,0.92624015,3208.9,3208.3,0.91870298]
[1768818970702,4.04258446,3208.9,3208.3,0.91870298]
[1768818976035,4.04258446,3208.9,3208.5,0.002]
[1768818976513,0.001,3208.6,3208.5,0.002]
[1768818979019,0.92724015,3208.6,3208.5,0.002]
[1768818982838,0.001,3208.6,3208.5,0.002]
[1768818993317,0.91675685,3208.6,3208.5,0.002]
[1768818996361,0.001,3208.6,3208.5,0.002]
[1768818997524,0.91675685,3208.6,3208.5,0.002]
[1768818998686,0.91575685,3208.5,3208.1,0.002]
[1768819000283,0.0018008,3208.6,3208.1,0.97518861]
[1768819002090,0.94746124,3208.6,3208.1,0.97518861]
[1768819002808,0.0018008,3208.6,3208.1,0.97518861]
[1768819003095,0.0018008,3208.6,3208.2,0.97318861]
[1768819011421,0.0018008,3208.6,3208.5,0.002]
[1768819018430,0.00080144,3209.0,3208.6,0.90126701]
[1768819018612,0.00180056,3209.4,3208.9,0.90126701]
[1768819019412,0.9117549,3209.4,3208.9,0.90126701]
[1768819019609,3.63039659,3209.7,3209.2,0.90126701]
[1768819019610,0.00080096,3209.7,3209.2,0.90126701]
[1768819019819,0.9107553,3209.7,3209.2,0.90126701]
[1768819020436,0.90995434,3210.0,3209.4,0.90126701]
[1768819021911,0.90995434,3209.9,3209.4,0.90126701]
[1768819022949,0.001,3209.7,3209.4,0.90126701]
[1768819024848,0.91095434,3209.7,3209.3,0.51480104]
[1768819027652,0.001,3209.7,3209.4,0.90126701]
[1768819028550,0.001,3209.7,3209.4,1.35447258]
[1768819028752,0.001,3209.7,3209.5,0.90126701]
[1768819028958,0.90995434,3210.0,3209.5,0.90126701]
[1768819029863,0.90995434,3210.0,3209.5,4.01697898]
[1768819030054,0.91075522,3210.2,3209.6,0.90126701]
[1768819030232,0.90995434,3210.1,3209.6,0.90126701]
[1768819031768,0.00080088,3210.2,3209.7,0.90126701]
[1768819032665,0.90995434,3210.5,3209.8,0.90206797]
[1768819034783,0.001,3209.9,3209.8,0.90206797]
[1768819034966,0.90995434,3210.5,3209.9,0.90126701]
[1768819037179,0.00080088,3210.6,3210.0,5.56547469]
[1768819037382,0.00080088,3210.6,3210.2,0.90126701]
[1768819038782,0.91075522,3210.6,3210.2,0.90126701]
[1768819039284,0.91075522,3210.6,3210.1,0.86808246]
[1768819039480,0.91075522,3210.6,3210.0,0.90126701]
[1768819040374,0.91075522,3210.6,3209.8,0.90206797]
[1768819040577,0.91075522,3210.6,3209.9,0.90126701]
[1768819044196,0.91075522,3210.6,3210.0,0.96694166]
[1768819046870,0.001,3210.3,3210.0,0.96694166]
[1768819047193,0.91075522,3210.6,3210.1,1.37516962]
[1768819047600,0.99122035,3210.9,3210.4,0.96694166]
[1768819047788,0.00260304,3211.3,3210.7,0.96694166]
[1768819047789,0.99382339,3211.3,3210.7,0.96694166]
[1768819050493,0.99382339,3211.3,3210.8,0.96694166]
[1768819053520,4.10784345,3211.3,3210.8,0.96694166]
[1768819053820,0.99122035,3211.2,3210.8,0.96694166]
[1768819054318,0.99382339,3211.3,3210.8,0.96694166]
[1768819056120,0.99382339,3211.3,3210.6,0.96774254]
[1768819056296,0.99382339,3211.3,3210.6,1.8937115]
[1768819056500,0.99122035,3211.2,3210.6,1.8937115]
[1768819057589,0.99122035,3211.2,3210.6,0.96774254]
[1768819059619,0.001,3211.0,3210.6,0.96774254]
[1768819059823,0.97848936,3211.0,3210.6,0.96774254]
[1768819059983,0.97848936,3211.0,3210.6,0.00080088]
[1768819060185,0.97929024,3211.0,3209.8,0.00080096]
[1768819060395,0.97748936,3210.5,3209.8,0.51380096]
[1768819060727,0.97748936,3210.5,3209.8,1.4175522]
[1768819061215,0.97748936,3210.5,3209.9,0.90375124]
[1768819061423,0.00080096,3210.6,3210.0,0.90375124]
[1768819061922,0.00180088,3211.0,3210.4,0.90375124]
[1768819062227,0.00180088,3211.0,3210.6,0.90375124]
[1768819063624,0.97929024,3211.0,3210.3,0.513]
[1768819064608,0.97929024,3211.0,3210.3,1.41675124]
[1768819065331,0.97929024,3211.0,3210.4,0.90375124]
[1768819065626,0.97929024,3211.0,3210.4,1.35700277]
[1768819066736,3.11612397,3211.0,3210.3,0.513]
[1768819066913,0.97748936,3210.9,3210.3,0.513]
[1768819067934,0.97748936,3210.7,3210.3,0.513]
[1768819068324,0.97748936,3210.7,3210.2,0.00080104]
[1768819068523,0.97748936,3210.5,3209.9,0.513]
[1768819070537,0.97748936,3210.4,3209.9,0.513]
[1768819071433,0.97748936,3210.4,3210.2,0.002]
[1768819072620,0.9782904,3210.6,3210.2,0.002]
[1768819077749,4.09297606,3210.6,3210.2,0.002]
[1768819078750,0.97350505,3210.5,3210.2,0.002]
[1768819079617,0.97350505,3210.4,3209.9,0.002]
[1768819079943,0.97350505,3210.2,3209.8,0.00080096]
[1768819082261,0.97350505,3210.1,3209.8,0.00080096]
[1768819082436,0.97350505,3210.1,3209.6,0.002]
[1768819084121,0.97350505,3210.1,3209.8,0.002]
[1768819084320,3.11526479,3210.0,3209.8,0.002]
[1768819084550,0.97350505,3209.9,3209.8,0.002]
[1768819085247,0.97350505,3210.0,3209.8,0.002]
[1768819091871,0.97350505,3209.9,3209.8,0.002]
[1768819092082,0.97350505,3209.9,3209.6,0.002]
[1768819092255,0.97350505,3209.8,3209.6,0.002]
[1768819093677,0.97350505,3209.7,3209.6,0.002]
[1768819096494,4.08906102,3209.7,3209.6,0.002]
[1768819096683,0.97350505,3209.7,3209.6,0.002]
[1768819097059,4.08891413,3209.9,3209.6,0.002]
[1768819097258,0.97350505,3209.9,3209.6,0.002]
[1768819098093,0.97350505,3209.8,3209.6,0.002]
[1768819103486,0.99463682,3209.9,3209.6,0.002]
[1768819107131,4.11000442,3209.9,3209.6,0.002]
[1768819107438,0.99463682,3209.9,3209.6,0.002]
[1768819113454,4.11000598,3209.9,3209.6,0.002]
[1768819113657,0.99463682,3209.9,3209.6,0.002]
[1768819116577,4.11002685,3209.9,3209.6,0.002]
[1768819117073,0.99463682,3209.7,3209.6,0.002]
[1768819119490,7.63676037,3209.7,3209.3,1e-08]
[1768819119689,0.92032136,3209.6,3209.0,0.00080064]
[1768819120642,9.86146895,3209.7,3208.6,0.00280152]
[1768819120643,0.921122,3209.4,3208.6,0.00280152]
[1768819120848,0.92032136,3209.2,3208.6,0.00280152]
[1768819121369,0.92032136,3209.0,3208.6,0.00280152]
[1768819124779,4.03656183,3209.0,3208.6,0.00280152]
[1768819125371,0.92032136,3209.0,3208.6,0.00280152]
[1768819128274,4.03655987,3209.0,3208.6,0.00280152]
[1768819130118,4.03655987,3209.0,3208.9,0.002]
[1768819130297,0.92032136,3208.9,3208.6,0.00280152]
[1768819133689,0.99048067,3208.8,3208.6,0.00280152]
[1768819134200,3.1163597,3208.9,3208.6,0.00280152]
[1768819135107,4.10676748,3209.0,3208.6,0.00280152]
[1768819140030,0.99048067,3209.0,3208.6,0.00280152]
[1768819140199,3.11616854,3209.1,3208.6,0.96675617]
[1768819140403,0.99048067,3209.0,3208.6,0.96675617]
[1768819141240,0.99048067,3209.0,3208.6,0.00280152]
[1768819141710,0.99048067,3209.0,3208.9,0.002]
[1768819141910,0.99048067,3209.0,3208.6,0.00280152]
[1768819142240,4.10678292,3209.0,3208.6,0.00280152]
[1768819142402,4.10678292,3209.0,3208.6,0.96675617]
[1768819142611,0.99048067,3208.9,3208.6,0.00280152]
[1768819148123,0.99048067,3209.1,3208.6,0.96675617]
[1768819148631,4.10664072,3209.1,3208.6,0.96675617]
[1768819149509,0.99048067,3209.0,3208.6,0.96675617]
[1768819150143,4.10676029,3209.0,3208.6,0.00280152]
[1768819150560,0.99048067,3209.0,3208.6,0.00280152]
[1768819151843,0.99048067,3209.0,3208.6,0.96675617]
[1768819152517,4.10652205,3209.2,3208.6,0.96675617]
[1768819153262,4.10652205,3209.2,3208.9,0.002]
[1768819153462,4.88025084,3209.2,3208.9,0.002]
[1768819156128,3.88977017,3209.2,3208.9,0.002]
[1768819156385,0.99048067,3209.1,3208.9,0.002]
[1768819157366,3.11623558,3209.0,3208.9,0.002]
[1768819158066,4.10671625,3209.0,3208.9,0.002]
[1768819158263,0.99048067,3208.9,3208.6,0.00280152]
[1768819160272,4.10684278,3208.9,3208.6,0.00280152]
[1768819160451,0.99048067,3208.8,3208.6,0.00280152]
[1768819161066,0.99048067,3208.8,3208.2,0.00080088]
[1768819161257,0.99048067,3208.7,3208.2,0.00080088]
[1768819162477,0.99048067,3208.5,3208.2,0.00080088]
[1768819171002,0.001,3208.6,3208.2,0.98360107]
[1768819171399,0.99051361,3208.6,3208.2,0.98360107]
[1768819171904,0.99051361,3208.6,3208.2,0.00080088]
[1768819177404,0.99051361,3208.6,3208.5,0.002]
[1768819177592,1.52486147,3208.6,3208.5,0.002]
[1768819179472,0.53534786,3208.6,3208.5,0.002]
[1768819180705,1.48737253,3208.6,3208.5,0.002]
[1768819184202,0.53534786,3208.6,3208.5,0.002]
[1768819186214,0.001,3208.6,3208.5,0.002]
[1768819186512,0.00080152,3209.0,3208.5,0.98658572]
[1768819189015,0.001,3208.7,3208.5,0.98658572]
[1768819194119,0.00080064,3209.4,3208.6,0.94163932]
[1768819194415,3.11570483,3209.6,3209.1,0.94163932]
[1768819195179,0.94929435,3209.6,3209.1,0.94163932]
[1768819196512,0.94929435,3209.5,3209.1,0.94163932]
[1768819196722,0.94929435,3209.5,3209.0,0.00080072]
[1768819197016,6.23138496,3209.6,3209.0,0.00080072]
[1768819197017,1.66736228,3209.4,3209.0,0.00080072]
[1768819197379,0.94929435,3209.3,3209.0,0.00080072]
[1768819200112,4.06524849,3209.3,3209.0,0.00080072]
[1768819201629,0.94929435,3209.3,3209.0,0.00080072]
[1768819202114,4.0652519,3209.3,3209.0,0.00080072]
[1768819202488,0.94929435,3209.2,3208.6,0.94244092]
[1768819202690,6.95001611,3209.3,3208.6,0.0008016]
[1768819202691,0.94929435,3209.0,3208.6,0.0008016]
[1768819206243,0.94929435,3209.3,3208.6,0.94244092]
[1768819206545,0.00080072,3209.4,3208.6,0.94244092]
[1768819206707,0.00080072,3209.4,3208.8,0.94163932]
[1768819209810,0.95009507,3209.4,3208.8,0.94163932]
[1768819210933,0.95009507,3209.4,3208.6,0.94244092]
[1768819211649,3.11594428,3209.3,3208.6,0.94244092]
[1768819211854,0.94929435,3209.2,3208.6,0.94244092]
[1768819212947,0.94929435,3209.2,3208.9,0.002]
[1768819213239,0.001,3209.1,3208.9,0.002]
[1768819215246,0.95029435,3209.1,3208.9,0.002]
[1768819216535,0.001,3209.1,3208.9,0.002]
[1768819216842,0.001,3209.1,3208.9,0.94363932]
[1768819222529,0.001,3209.1,3209.0,0.94163932]
[1768819222927,0.00080072,3209.4,3209.0,0.94163932]
[1768819223350,0.99976701,3209.4,3209.0,0.94163932]
[1768819223530,0.99976701,3209.4,3208.9,0.002]
[1768819223848,0.99976701,3209.4,3208.9,0.99289429]
[1768819225653,0.00080072,3209.4,3208.9,0.41294143]
[1768819225949,0.00080072,3209.4,3209.0,0.99089429]
[1768819227850,0.00080072,3209.4,3209.0,4.10711493]
[1768819228055,0.00080072,3209.4,3209.1,0.99089429]
[1768819229327,0.00080072,3209.4,3209.2,0.99089429]
[1768819229528,0.00080104,3209.7,3209.2,0.99089429]
[1768819230759,0.99896629,3209.6,3209.0,0.99169509]
[1768819231054,0.00080104,3209.7,3209.0,0.99169509]
[1768819231260,0.99976733,3209.7,3209.0,0.99169509]
[1768819231480,0.99976733,3209.7,3209.1,0.99089429]
[1768819236366,0.001,3209.4,3209.1,0.99089429]
[1768819237346,0.001,3209.4,3209.1,3.11612482]
[1768819237547,0.001,3209.4,3209.2,0.99089429]
[1768819237748,0.00080104,3209.7,3209.2,0.99089429]
[1768819237956,0.99976733,3209.7,3209.2,0.99089429]
[1768819239786,0.00080104,3209.7,3209.3,0.97351987]
[1768819240358,0.94360056,3209.7,3209.3,0.97351987]
[1768819240943,0.00080104,3209.7,3209.3,0.97351987]
[1768819241261,0.94460048,3210.2,3209.3,1.48732099]
[1768819241506,0.94460048,3210.2,3209.4,0.97351987]
[1768819241641,0.94460048,3210.2,3209.6,0.97351987]
[1768819243073,0.94460048,3210.2,3209.7,0.97351987]
[1768819245677,0.94460048,3210.2,3209.5,3.1157375]
[1768819245884,0.94460048,3210.2,3209.6,0.97351987]
[1768819247942,0.001,3209.9,3209.6,0.97351987]
[1768819253591,0.001,3209.9,3209.6,4.08917212]
[1768819253891,0.001,3209.9,3209.6,1.69422154]
[1768819255986,0.91926124,3209.9,3209.6,0.72070167]
[1768819256190,0.00180096,3210.2,3209.6,0.72070167]
[1768819256367,0.91826124,3210.1,3209.5,4.08074779]
[1768819257294,1.83752249,3210.1,3209.5,4.08074779]
[1768819257786,0.91926125,3210.1,3209.6,0.96503284]
[1768819258292,1.83752249,3210.1,3209.6,0.96503284]
[1768819258494,0.91826124,3210.0,3209.4,3.11784719]
[1768819258795,0.91826124,3210.0,3209.5,1.63978891]
[1768819260289,0.001,3209.8,3209.5,1.63978891]
[1768819261765,1e-08,3209.7,3209.5,1.63978891]
[1768819266406,1e-08,3209.7,3209.5,4.75549228]
[1768819266772,1e-08,3209.7,3209.5,1.63978891]
[1768819267089,0.91826125,3209.7,3209.4,0.002]
[1768819268563,1e-08,3209.7,3209.4,0.002]
[1768819272190,0.91906237,3209.7,3209.0,0.0028008]
[1768819272573,0.91826124,3209.4,3208.9,0.002]
[1768819272786,0.91826124,3209.2,3208.9,0.002]
[1768819277708,0.0008008,3209.4,3208.9,0.96703284]
[1768819278710,0.00080112,3209.7,3209.4,0.96503284]
[1768819282021,0.91826124,3210.1,3209.6,0.96503284]
[1768819283709,0.91826124,3210.1,3209.6,1.37311942]
[1768819284083,0.91826124,3210.1,3209.6,0.40808658]
[1768819284290,0.91826124,3210.1,3209.7,0.002]
[1768819296352,0.001,3209.8,3209.7,0.002]
[1768819296729,0.97117302,3210.0,3209.7,0.002]
[1768819302054,0.90717788,3210.2,3209.7,0.002]
[1768819302261,0.90717788,3210.2,3209.7,0.95214355]
[1768819304770,0.00180096,3210.2,3209.7,0.95214355]
[1768819305966,0.90717788,3210.2,3209.7,0.95214355]
[1768819307847,0.001,3209.9,3209.7,0.95214355]
[1768819308049,0.001,3209.9,3209.7,1.35892274]
[1768819308542,0.90717788,3210.2,3209.7,1.35892274]
[1768819308746,0.90717788,3210.2,3209.7,0.95214355]
[1768819313572,0.90717788,3210.2,3209.7,4.06769455]
[1768819317756,0.90717788,3210.2,3209.7,0.95214355]
[1768819318387,0.90717788,3210.2,3209.7,4.06769879]
[1768819319373,0.001,3209.9,3209.7,4.06769879]
[1768819319615,0.90717788,3210.2,3209.7,4.78604293]
[1768819319767,0.90717788,3210.2,3209.7,4.06769879]
[1768819320170,0.90717788,3210.2,3209.7,0.95214355]
[1768819320515,0.90717788,3210.2,3209.7,0.002]
[1768819329491,0.92087791,3210.1,3209.7,0.002]
[1768819330909,0.001,3209.9,3209.7,0.002]
[1768819332706,0.92187791,3209.9,3209.7,0.002]
[1768819333635,0.92087791,3209.7,3209.0,0.00080088]
[1768819333948,0.92087791,3209.2,3208.7,0.513]
[1768819334681,0.00080088,3209.4,3208.8,0.92438783]
[1768819334888,0.92167879,3209.4,3208.8,0.92438783]
[1768819342187,0.92167879,3209.4,3208.8,4.04081119]
[1768819342615,0.92167879,3209.4,3209.1,0.002]
[1768819346588,0.00080088,3209.4,3209.1,0.002]
[1768819347209,0.00080088,3209.4,3209.1,0.91541814]
[1768819348147,0.00080088,3209.4,3209.1,0.002]
[1768819348301,0.92125125,3209.4,3209.1,0.002]
[1768819350217,0.92045037,3209.2,3209.1,0.002]
[1768819353142,0.00080088,3209.4,3209.1,0.002]
[1768819353444,0.92045037,3209.3,3209.1,0.002]
[1768819357246,0.00080088,3209.4,3209.1,0.002]
[1768819357412,0.00080088,3209.4,3209.1,0.91541814]
[1768819357747,0.001,3209.9,3209.3,0.91421942]
[1768819357953,0.92125141,3210.6,3209.7,0.91341814]
[1768819358140,0.92125141,3210.6,3209.9,0.91341814]
[1768819358341,0.00080104,3210.6,3209.9,0.91341814]
[1768819359458,0.00080104,3210.6,3210.0,3.11526479]
[1768819359617,0.00080104,3210.6,3210.1,0.97741129]
[1768819360011,0.00080104,3210.6,3210.3,0.97741129]
[1768819360224,0.00180088,3211.0,3210.4,0.97741129]
[1768819360862,0.00260304,3211.3,3210.6,0.97821225]
[1768819361153,0.91655682,3211.6,3211.0,0.97741129]
[1768819361517,0.91655682,3211.6,3211.1,3.11419762]
[1768819361726,0.91655682,3211.6,3211.0,4.09167729]
[1768819361913,0.91655618,3212.6,3211.2,0.97741129]
[1768819362115,0.9157553,3212.5,3211.6,0.00080096]
[1768819362353,0.9157553,3211.9,3211.3,0.513]
[1768819362647,4.66139538,3212.6,3211.4,0.97741129]
[1768819362845,0.46613954,3212.5,3211.4,0.97741129]
[1768819363056,0.91655626,3212.6,3211.5,0.97741129]
[1768819363425,0.9157553,3212.5,3211.5,0.97741129]
[1768819363626,0.9157553,3212.4,3211.5,1.49041129]
[1768819363827,0.9157553,3212.4,3211.5,4.60420611]
[1768819364131,0.9157553,3212.4,3211.6,0.97741129]
[1768819364455,0.9157553,3212.2,3211.6,0.97741129]
[1768819366141,0.9157553,3212.2,3211.6,4.09112388]
[1768819369436,0.9157553,3212.2,3211.5,0.513]
[1768819369954,0.9157553,3212.2,3211.5,1.49041129]
[1768819370769,0.9157553,3212.2,3211.6,0.97741129]
[1768819370966,1.47349027,3212.1,3211.6,0.97741129]
[1768819372269,0.9157553,3212.0,3211.5,1.49041129]
[1768819372564,0.9157553,3212.0,3211.5,0.513]
[1768819372867,0.9157553,3212.0,3211.6,0.90867312]
[1768819376157,0.90811716,3212.2,3211.6,0.90867312]
[1768819376468,0.90811716,3212.0,3211.4,1.42167312]
[1768819376971,0.90811716,3212.0,3211.5,0.90867312]
[1768819377135,0.90811716,3212.0,3211.2,1.42247472]
[1768819377641,0.90811716,3211.8,3211.2,1.42247472]
[1768819379577,0.90811716,3211.7,3211.2,0.90947472]
[1768819379868,0.40216442,3211.6,3211.2,0.90947472]
[1768819380075,0.90811716,3211.7,3211.2,0.90947472]
[1768819381665,4.02176268,3211.7,3211.2,0.90947472]
[1768819382263,4.0217382,3211.7,3211.2,0.90947472]
[1768819382461,0.90811716,3211.6,3211.2,0.90947472]
[1768819383486,0.90811716,3211.6,3211.2,0.0008016]
[1768819383642,0.40217382,3211.5,3211.2,0.0008016]
[1768819385346,0.90811716,3211.6,3211.2,0.90947472]
[1768819385543,0.90811716,3211.8,3211.2,0.90947472]
[1768819388158,0.90811716,3211.7,3211.2,0.90947472]
[1768819390193,0.90811716,3211.7,3211.5,0.002]
[1768819393693,1.42311716,3211.9,3211.5,0.002]
[1768819393893,0.83364902,3211.8,3211.5,0.002]
[1768819398616,1.74176618,3211.8,3211.5,0.002]
[1768819403395,0.83364902,3211.8,3211.5,0.002]
[1768819409427,0.83364902,3211.8,3211.5,0.90690231]
[1768819410323,0.83364902,3211.8,3211.5,0.002]
[1768819410524,0.83364902,3211.8,3211.5,0.90690231]
[1768819410727,0.83364902,3211.8,3211.5,0.002]
[1768819410927,0.83364902,3211.8,3211.6,0.90490231]
[1768819411134,0.001,3211.9,3211.6,0.90490231]
[1768819415252,0.95273574,3211.9,3211.5,0.002]
[1768819416458,3.11447043,3211.9,3211.5,0.002]
[1768819416752,4.06620617,3211.9,3211.5,0.002]
[1768819416914,0.95173574,3211.8,3211.5,0.002]
[1768819417116,1.35835636,3211.8,3211.5,0.002]
[1768819418326,0.95173574,3211.7,3211.5,0.002]
[1768819419552,0.40662062,3211.8,3211.5,0.002]
[1768819419740,1.32848242,3211.8,3211.5,0.002]
[1768819420451,4.44201347,3211.8,3211.5,0.002]
[1768819420653,0.44430135,3211.7,3211.5,0.002]
[1768819424338,0.9218618,3211.8,3211.5,0.002]
[1768819425159,0.001,3211.6,3211.5,0.002]
[1768819435673,0.001,3211.6,3211.5,0.92268322]
[1768819436070,0.001,3211.6,3211.2,0.0008016]
[1768819436273,0.001,3211.6,3211.2,0.92148482]
[1768819447972,0.001,3211.6,3211.5,0.002]
[1768819456501,0.001,3211.6,3211.2,0.92148482]
[1768819459482,0.41146051,3211.6,3211.5,0.002]
[1768819459683,1.40153888,3211.6,3211.5,0.002]
[1768819460080,0.99007837,3211.5,3211.2,0.0008016]
[1768819461400,0.001,3211.6,3211.2,0.0008016]
[1768819461817,0.001,3211.6,3211.2,0.92148482]
[1768819462930,0.92514133,3211.6,3211.2,0.0008016]
[1768819463706,0.92514133,3211.6,3211.2,0.97174423]
[1768819463906,1.37941841,3211.5,3211.2,0.0008016]
[1768819464417,0.45527708,3211.5,3211.2,0.0008016]
[1768819467193,0.45527708,3211.5,3211.2,0.97174423]
[1768819472005,0.45527708,3211.5,3211.2,0.0008016]
[1768819472541,1.37941841,3211.5,3211.2,0.0008016]
[1768819472836,0.44941728,3211.4,3211.2,0.0008016]
[1768819481246,0.92490038,3211.3,3211.1,0.002]
[1768819481629,0.92490038,3211.2,3210.6,0.91738601]
[1768819483257,0.92490038,3211.2,3210.6,0.00080096]
[1768819483426,0.92490038,3211.1,3210.6,0.91738601]
[1768819483627,0.40390116,3211.0,3210.6,0.91738601]
[1768819485173,4.55377719,3211.3,3210.6,0.91738601]
[1768819486151,0.92490038,3211.2,3210.6,0.91738601]
[1768819486356,4.55377719,3211.3,3210.6,0.91738601]
[1768819487329,1.43970198,3211.3,3210.6,0.91738601]
[1768819487960,4.55370696,3211.3,3210.6,0.91738601]
[1768819488262,0.50031242,3211.2,3210.6,0.91738601]
[1768819489024,0.92490038,3211.1,3210.6,0.91738601]
[1768819490840,0.92490038,3211.1,3210.6,0.00080096]
[1768819490841,0.92490038,3211.0,3210.6,0.00080096]
[1768819491037,0.92490038,3211.0,3210.2,0.91738617]
[1768819491229,0.00080096,3211.0,3210.6,0.91658505]
[1768819492548,0.0008016,3211.3,3210.7,0.91658505]
[1768819492752,0.0018016,3211.6,3211.0,0.96670402]
[1768819494968,0.0018016,3211.6,3211.1,3.11419762]
[1768819495129,0.0018016,3211.6,3211.2,0.96670402]
[1768819497969,0.0018016,3211.6,3211.3,0.96670402]
[1768819502370,0.001,3212.3,3211.6,0.96670402]
[1768819502670,0.001,3212.3,3211.8,0.96670402]
[1768819503377,0.95611435,3212.3,3211.3,6.63606055]
[1768819503544,0.95611435,3212.3,3211.5,1.47970402]
[1768819503872,0.95611435,3212.3,3211.6,4.08038121]
[1768819504081,0.95611435,3212.3,3211.6,0.96670402]
[1768819504237,0.95511435,3212.2,3211.6,0.96670402]
[1768819504440,0.95511435,3212.2,3211.5,0.513]
[1768819504665,0.95511435,3212.2,3211.5,4.59344576]
[1768819504852,0.95511435,3212.2,3211.6,0.96670402]
[1768819505054,0.95511435,3212.2,3211.7,0.96670402]
[1768819505896,0.001,3212.3,3211.8,0.96670402]
[1768819507694,0.001,3211.9,3211.8,0.96670402]
[1768819507895,0.001,3212.3,3211.8,0.96670402]
[1768819512467,0.95611435,3212.3,3211.8,0.96670402]
[1768819512868,0.95611435,3212.3,3211.8,4.08021712]
[1768819513175,0.95611435,3212.3,3211.8,0.96670402]
[1768819517100,0.001,3212.3,3211.8,0.96670402]
[1768819517774,0.001,3212.3,3211.8,3.11351817]
[1768819517982,0.001,3212.3,3211.9,0.96670402]
[1768819519372,0.001,3212.0,3211.9,0.96670402]
[1768819519572,0.001,3212.3,3211.9,0.96670402]
[1768819523305,0.95299835,3212.5,3211.8,0.95406357]
[1768819523799,4.06584692,3212.5,3211.8,0.95406357]
[1768819524004,0.93231622,3212.4,3211.9,0.95406357]
[1768819525177,0.7693304,3212.5,3211.9,0.95406357]
[1768819525580,0.93231622,3212.5,3211.9,0.95406357]